bitfinex/quotes_ETHUSD_20220213
["timestamp","ask_amount","ask_price","bid_price","bid_amount"]
[1644727754951,0.01039474,2911.9,2911.8,0.83738451]
[1644727755154,0.01039474,2911.9,2911.7,0.494]
[1644727756252,3.647,2912.4,2912.2,0.92392353]
[1644727756651,0.04156989,2912.7,2912.2,0.92392353]
[1644727757051,1.46080117,2912.6,2912.2,0.92392353]
[1644727757454,0.00982983,2912.6,2912.2,0.92392353]
[1644727758400,8.4358736,2913.2,2912.2,0.92392353]
[1644727758607,0.00982989,2912.5,2912.2,0.92392353]
[1644727759305,0.00889738,2912.5,2912.2,0.92392353]
[1644727759704,0.1716,2913.1,2912.2,0.92392353]
[1644727759904,1.46071075,2913.0,2912.7,0.86800248]
[1644727760205,0.74363531,2912.6,2912.4,1.0758929]
[1644727761809,0.74363531,2912.6,2912.4,1.9341629]
[1644727762018,0.74363531,2912.6,2912.4,3.2863929]
[1644727762253,0.75402945,2912.6,2912.4,3.2863929]
[1644727762452,0.75402945,2912.6,2912.4,3.5863929]
[1644727762652,0.75402945,2912.6,2912.5,3.23822869]
[1644727762853,0.75402945,2912.6,2912.4,3.5863929]
[1644727763052,0.75402945,2912.6,2912.5,3.25596381]
[1644727763254,0.74363531,2912.6,2912.5,3.26590909]
[1644727763457,0.75402945,2912.6,2912.5,4.22617909]
[1644727763657,0.75402945,2912.6,2912.5,3.75475525]
[1644727763859,0.75402945,2912.6,2912.5,3.75495792]
[1644727764256,0.75402945,2912.6,2912.5,5.05495792]
[1644727764460,0.74363531,2912.6,2912.5,5.05495792]
[1644727765658,0.69009385,2912.6,2912.5,5.07278665]
[1644727765908,0.69009385,2912.6,2912.5,0.51182873]
[1644727769749,0.69009385,2912.6,2912.5,1.41783396]
[1644727770345,0.69009385,2912.6,2912.5,1.40000523]
[1644727772450,0.69009385,2912.6,2912.5,4.91824665]
[1644727772650,0.69009385,2912.6,2912.5,4.76049555]
[1644727773049,0.69009385,2912.6,2912.5,5.61866555]
[1644727773711,0.69009385,2912.6,2912.5,5.91866555]
[1644727773909,0.69009385,2912.6,2912.5,6.91866555]
[1644727774310,0.69009385,2912.6,2912.5,5.61866555]
[1644727774510,0.69009385,2912.6,2912.5,5.91866555]
[1644727774913,0.69009385,2912.6,2912.5,5.61866555]
[1644727775113,0.69009385,2912.6,2912.5,6.91866555]
[1644727777010,0.69009385,2912.6,2912.5,5.61866555]
[1644727777260,0.69009385,2912.6,2912.5,2.25817523]
[1644727777462,0.69009385,2912.6,2912.5,1.40000523]
[1644727777660,0.69009385,2912.6,2912.5,4.78433923]
[1644727777866,0.69009385,2912.6,2912.5,5.64250923]
[1644727778464,0.69009385,2912.6,2912.5,6.94250923]
[1644727778767,0.1753521,2913.5,2912.6,3.2]
[1644727778970,0.1753521,2913.5,2912.9,0.85797]
[1644727779168,0.0037521,2913.5,2913.1,2.65]
[1644727779366,0.0037521,2913.5,2913.0,4.66179788]
[1644727779367,1.46393926,2914.0,2913.2,5.12058786]
[1644727779568,1.46393926,2913.9,2913.3,0.494]
[1644727779765,0.0037521,2913.9,2913.4,3.26576576]
[1644727779969,1.46392233,2914.4,2913.8,0.90567567]
[1644727780168,0.65182114,2913.6,2913.5,0.494]
[1644727780373,0.65182114,2913.6,2913.5,1.43372175]
[1644727780912,0.65182114,2913.6,2913.5,1.73372175]
[1644727781301,0.65182114,2913.6,2913.5,4.96417458]
[1644727782109,0.01039275,2913.7,2913.5,6.67985458]
[1644727782309,0.01039275,2913.7,2913.6,3.42144853]
[1644727782515,0.04092649,2914.3,2914.2,0.87030068]
[1644727782911,1.63165481,2914.5,2914.2,0.87030068]
[1644727783125,1.46005481,2914.4,2914.2,0.87030068]
[1644727783313,1.50154972,2914.4,2914.2,0.87030068]
[1644727783510,1.46005481,2914.3,2914.0,0.494]
[1644727783910,0.04035806,2914.2,2914.0,0.494]
[1644727785054,0.05010268,2914.2,2914.0,0.494]
[1644727786153,0.04035806,2914.2,2914.0,0.494]
[1644727786353,0.05010268,2914.2,2914.0,0.494]
[1644727787153,0.04035806,2914.2,2914.0,0.494]
[1644727787559,0.05014615,2914.2,2914.0,0.494]
[1644727788417,0.04035806,2914.2,2914.0,0.494]
[1644727788612,0.05014615,2914.2,2914.0,0.494]
[1644727788812,0.05014615,2914.2,2913.7,1.3900135]
[1644727789713,0.04035806,2914.2,2913.7,1.3900135]
[1644727789913,0.00589963,2914.1,2913.7,1.3900135]
[1644727790914,0.04035806,2914.2,2913.7,1.3900135]
[1644727791114,0.00589669,2914.0,2913.7,1.3900135]
[1644727792161,0.04035806,2914.2,2913.7,1.3900135]
[1644727792362,0.00979025,2914.0,2913.7,1.3900135]
[1644727793165,0.04035806,2914.2,2913.7,1.3900135]
[1644727793564,0.00979025,2914.0,2913.7,1.3900135]
[1644727794169,0.00979025,2914.0,2913.7,0.494]
[1644727794374,0.04035806,2914.2,2913.3,0.25]
[1644727794671,1.63179331,2914.1,2912.5,3.35964762]
[1644727794870,1.63179331,2914.1,2913.0,0.00977756]
[1644727794871,4.97371948,2914.0,2913.0,0.00977756]
[1644727795068,1.63179331,2913.9,2913.0,0.00977756]
[1644727795273,2.33189028,2913.8,2913.0,0.00977756]
[1644727795570,0.0037521,2913.8,2913.0,0.00977756]
[1644727795911,0.00977467,2913.5,2913.0,0.00977665]
[1644727796605,0.00977467,2913.5,2913.4,1.01934415]
[1644727796806,0.0037521,2913.8,2913.4,1.01934415]
[1644727797007,1.63183735,2913.9,2912.6,0.494]
[1644727797210,0.00977487,2913.4,2913.0,0.00977635]
[1644727798110,0.0037521,2913.8,2913.1,0.95643611]
[1644727798311,0.00977608,2913.3,2913.1,0.95643611]
[1644727798710,0.00977608,2913.3,2913.0,0.00977739]
[1644727799312,0.0037521,2913.8,2912.6,0.494]
[1644727799512,0.00977615,2913.3,2913.0,0.00977729]
[1644727800560,3.27300797,2913.6,2912.8,1.18386087]
[1644727800853,0.00977615,2913.3,2913.0,0.00977729]
[1644727801652,3.30187358,2913.6,2912.8,1.18386087]
[1644727801952,0.0097761,2913.3,2913.0,0.00977724]
[1644727802955,3.73863443,2913.6,2912.4,0.25]
[1644727803160,3.73863443,2913.6,2913.0,0.00977724]
[1644727803161,0.0097761,2913.3,2913.0,0.00977724]
[1644727803414,1.46039599,2913.2,2913.0,0.00977724]
[1644727803607,3.27888397,2913.1,2913.0,0.00977724]
[1644727804006,3.23853711,2913.1,2913.0,0.00977724]
[1644727804210,0.1716,2913.2,2912.4,1.41392088]
[1644727804405,0.00977606,2913.2,2912.9,0.00977721]
[1644727805407,3.40198815,2913.3,2912.4,1.41392088]
[1644727805609,1.47018163,2913.2,2912.9,0.0097772]
[1644727805813,0.18137606,2913.2,2913.1,0.02357507]
[1644727806010,1.6417805,2913.2,2913.1,0.02357507]
[1644727806511,1.63200444,2913.2,2913.1,0.02357507]
[1644727806911,1.63200444,2913.2,2912.4,1.16392088]
[1644727806912,0.03737289,2913.0,2912.4,1.16392088]
[1644727808857,0.1716,2913.4,2912.4,1.16392088]
[1644727808858,0.15897289,2913.4,2912.4,3.18027088]
[1644727809162,3.8222521,2913.6,2912.4,3.18027088]
[1644727809163,0.00588344,2913.2,2912.5,0.494]
[1644727809354,0.00588344,2913.2,2912.5,0.794]
[1644727809553,0.00588344,2913.2,2913.0,0.98648575]
[1644727810153,0.0037521,2913.6,2913.0,0.98648575]
[1644727810352,0.02066917,2913.2,2913.0,0.98648575]
[1644727811202,0.01478501,2913.2,2913.0,0.98648575]
[1644727811600,0.02456117,2913.2,2913.0,0.98648575]
[1644727811806,0.0037521,2913.7,2913.1,6.35993]
[1644727812008,0.0390962,2913.9,2913.4,1.01514646]
[1644727812009,1.46009471,2913.8,2913.4,1.01514646]
[1644727812203,0.0428483,2913.9,2913.5,0.494]
[1644727812401,0.0390962,2913.9,2913.5,0.494]
[1644727812601,0.04035806,2914.2,2913.5,0.6656]
[1644727812802,1.45999542,2914.1,2913.8,1.17112549]
[1644727813002,1.45999542,2914.1,2913.9,0.494]
[1644727814003,1.45999542,2914.0,2913.9,0.494]
[1644727814851,1.45999542,2914.3,2913.9,0.494]
[1644727815251,0.04035806,2914.2,2913.9,0.494]
[1644727815453,1.45999542,2914.1,2913.9,0.494]
[1644727816255,1.45999542,2914.1,2913.9,1.35182]
[1644727816453,1.47039233,2914.1,2913.9,0.494]
[1644727816655,1.45999542,2914.0,2913.9,0.494]
[1644727817756,1.45999542,2914.0,2913.9,0.66609129]
[1644727818606,1.45999542,2914.1,2913.9,0.66609129]
[1644727818807,1.4703924,2914.1,2914.0,0.85779]
[1644727819607,1.45999542,2914.1,2914.0,0.85779]
[1644727819803,1.45999542,2914.1,2913.9,0.66609129]
[1644727820204,1.45999542,2914.1,2913.9,0.494]
[1644727820607,1.45999542,2914.1,2913.9,0.53088011]
[1644727821205,1.47039747,2914.1,2913.9,0.53088011]
[1644727821410,1.45999542,2914.0,2913.9,0.53088011]
[1644727822252,1.47039461,2914.1,2913.9,0.53088011]
[1644727822454,1.47039461,2914.1,2913.9,0.83088011]
[1644727822455,1.45999542,2914.0,2913.9,0.83088011]
[1644727822656,0.01039919,2914.1,2913.9,2.1574014]
[1644727822959,0.01039919,2914.1,2913.9,2.6289014]
[1644727823354,0.04035806,2914.2,2913.9,2.6289014]
[1644727823560,0.01039912,2914.1,2913.9,2.6289014]
[1644727823964,1.4599291,2914.0,2913.9,0.70238011]
[1644727824158,1.4599291,2914.0,2913.9,0.53088011]
[1644727824359,1.4599291,2914.0,2913.9,0.03688011]
[1644727825906,1.47033122,2914.1,2913.9,0.03688011]
[1644727826100,1.4599291,2914.0,2913.9,0.0267811]
[1644727830757,1.47033122,2914.1,2913.9,0.0267811]
[1644727830954,1.4599291,2914.0,2913.9,0.0267811]
[1644727831960,1.47033122,2914.1,2913.9,0.0267811]
[1644727832155,1.4599291,2914.0,2913.9,0.0267811]
[1644727833156,1.47001915,2914.1,2913.9,0.0267811]
[1644727833398,1.4599291,2914.0,2913.9,0.0267811]
[1644727834002,1.4590863,2914.0,2913.9,0.0267811]
[1644727834404,0.01009005,2914.1,2913.9,0.0267811]
[1644727835305,0.04035806,2914.2,2913.9,0.8845811]
[1644727835503,0.01008999,2914.1,2913.9,0.8845811]
[1644727835705,0.01008999,2914.1,2913.9,1.1845811]
[1644727835904,0.01008999,2914.1,2913.9,1.65667239]
[1644727836304,0.01008999,2914.1,2913.9,1.35667239]
[1644727836503,0.04035806,2914.2,2913.9,1.35667239]
[1644727836705,0.00984581,2914.1,2913.9,1.35667239]
[1644727837155,0.00984581,2914.1,2913.9,1.05667239]
[1644727837752,0.04035806,2914.2,2913.9,0.19887239]
[1644727837953,0.00984581,2914.1,2913.9,0.19887239]
[1644727838857,0.04035806,2914.2,2913.9,0.19887239]
[1644727839057,0.00984581,2914.1,2913.9,0.19887239]
[1644727839263,0.00984581,2914.1,2913.9,0.0267811]
[1644727839459,0.05356219,2913.8,2913.7,0.50838209]
[1644727842009,0.05356219,2913.8,2913.7,0.68047338]
[1644727845349,0.05356219,2913.8,2913.7,1.53835338]
[1644727845748,0.09043471,2913.8,2913.7,1.53835338]
[1644727848049,0.09043471,2913.8,2913.7,0.68047338]
[1644727850308,0.08096892,2913.8,2913.7,0.68047338]
[1644727851709,0.08096892,2913.8,2913.7,0.50838209]
[1644727854163,1.54113497,2913.8,2913.7,0.50838209]
[1644727863167,1.53991866,2913.8,2913.7,0.50838209]
[1644727863810,1.01676418,2913.6,2913.1,0.137243]
[1644727864013,0.00988059,2913.9,2913.2,4.15]
[1644727864221,0.0037521,2914.2,2913.7,0.18447791]
[1644727864419,0.03951637,2914.1,2913.8,6.8345]
[1644727864812,0.03951637,2914.1,2914.0,6.169]
[1644727865012,0.03951637,2914.1,2914.0,6.8345]
[1644727865211,0.03951637,2914.1,2914.0,7.95501623]
[1644727865410,0.04206333,2914.5,2914.0,7.95501623]
[1644727865612,0.04206333,2914.5,2914.1,6.169]
[1644727865816,0.04149491,2914.4,2914.2,1.35166]
[1644727866011,0.04149491,2914.4,2914.2,1.52375129]
[1644727866209,0.0037521,2914.8,2914.2,1.35166]
[1644727866210,0.04092649,2914.3,2914.2,1.35166]
[1644727866411,0.04092649,2914.3,2914.2,4.72200883]
[1644727866611,0.04092649,2914.3,2914.2,4.89410012]
[1644727870261,0.04092649,2914.3,2914.2,4.92635374]
[1644727870925,0.04092649,2914.3,2914.2,1.55600491]
[1644727871112,0.04092649,2914.3,2914.2,3.15600491]
[1644727871313,0.04092649,2914.3,2914.2,6.41442335]
[1644727871514,0.04092649,2914.3,2914.2,6.45191341]
[1644727875257,0.00984925,2914.4,2914.2,6.45191341]
[1644727875455,0.00984925,2914.4,2914.3,3.6148743]
[1644727875658,0.0037521,2915.2,2914.4,4.15]
[1644727875858,0.0037521,2915.3,2914.7,0.85748]
[1644727876060,0.65270923,2915.6,2914.8,4.38469186]
[1644727876256,0.0037521,2915.5,2914.9,1.01734607]
[1644727876459,0.65646133,2915.8,2915.6,0.94728124]
[1644727876656,0.65270923,2915.8,2915.6,0.94728124]
[1644727877262,0.65270923,2915.8,2915.3,0.494]
[1644727877861,0.00376629,2915.9,2915.3,0.494]
[1644727878514,1.11808597,2915.9,2915.3,0.494]
[1644727878722,0.00376629,2915.9,2915.3,0.494]
[1644727879917,0.00645994,2915.7,2915.3,0.494]
[1644727880915,0.00376629,2915.9,2915.3,0.494]
[1644727881123,0.00645994,2915.6,2915.3,0.494]
[1644727881717,0.00645994,2915.6,2914.9,0.494]
[1644727881919,0.00645994,2915.6,2915.0,0.85749]
[1644727882163,0.00376629,2915.7,2915.0,0.85749]
[1644727882358,0.1715,2916.0,2915.0,0.85749]
[1644727882359,0.01039845,2915.4,2915.0,0.85749]
[1644727882559,0.01039845,2915.4,2915.0,1.95001547]
[1644727883361,0.17526629,2916.0,2915.0,1.95001547]
[1644727883562,0.01039852,2915.3,2915.0,1.95001547]
[1644727883864,0.01039852,2915.3,2915.0,1.09252547]
[1644727884463,0.17526629,2916.0,2915.0,1.09252547]
[1644727884768,0.01039859,2915.3,2915.0,1.09252547]
[1644727885566,0.01039859,2915.3,2915.0,1.12496878]
[1644727885766,0.00376629,2915.8,2915.0,1.12496878]
[1644727886022,0.01039859,2915.3,2915.0,4.34536859]
[1644727886224,0.01039859,2915.3,2915.0,1.12496878]
[1644727886825,0.01039859,2915.3,2915.1,0.494]
[1644727887025,0.00376629,2915.8,2915.1,0.494]
[1644727887225,0.01039859,2915.3,2915.1,0.494]
[1644727888225,0.00376629,2915.8,2915.1,0.494]
[1644727888525,0.01039852,2915.3,2915.1,0.494]
[1644727889326,0.00376629,2915.6,2915.1,0.494]
[1644727889527,0.01039852,2915.3,2915.1,0.494]
[1644727890462,0.00376629,2915.6,2915.1,0.494]
[1644727890862,0.01039852,2915.3,2915.1,0.494]
[1644727891764,0.00376629,2915.6,2915.1,0.494]
[1644727891966,0.01039852,2915.3,2915.1,0.494]
[1644727892171,0.01039852,2915.3,2914.7,0.78450449]
[1644727892172,1.52436683,2914.9,2914.7,0.78450449]
[1644727892368,1.52436683,2914.9,2914.7,0.53450449]
[1644727892966,1.52436683,2914.9,2914.7,0.5241035]
[1644727893170,1.53476589,2914.9,2914.7,0.5345036]
[1644727894217,1.52436683,2914.9,2914.7,0.5241035]
[1644727894411,1.53476589,2914.9,2914.7,0.5345036]
[1644727895914,1.53476589,2914.9,2914.7,0.70659489]
[1644727896616,1.52436683,2914.9,2914.7,0.69619479]
[1644727896818,1.52436683,2914.9,2914.7,0.70659489]
[1644727896819,1.53476589,2914.9,2914.7,0.70659489]
[1644727897260,1.53476589,2914.9,2914.7,0.5345036]
[1644727897664,1.13250883,2914.9,2914.7,0.5241035]
[1644727898063,1.14290789,2914.9,2914.7,0.5345036]
[1644727898864,1.13250883,2914.9,2914.7,0.5241035]
[1644727899264,1.14290789,2914.9,2914.7,0.5345036]
[1644727900063,1.13250883,2914.9,2914.7,0.5241035]
[1644727900464,1.17893362,2914.9,2914.7,0.5345036]
[1644727901315,1.16853456,2914.9,2914.7,0.5241035]
[1644727901518,1.17893362,2914.9,2914.8,0.494]
[1644727901912,1.17893362,2914.9,2914.8,0.66609129]
[1644727902514,1.16853456,2914.9,2914.8,0.66609129]
[1644727905510,1.13250883,2914.9,2914.8,0.66609129]
[1644727905712,1.09555386,2914.9,2914.8,0.66609129]
[1644727906111,1.09555386,2914.9,2914.8,0.494]
[1644727906612,1.09555386,2914.9,2914.7,0.53450371]
[1644727907517,1.09555386,2914.9,2914.7,0.5241035]
[1644727907712,1.10595292,2914.9,2914.7,0.5345036]
[1644727908516,1.45959363,2914.8,2914.7,0.5241035]
[1644727908716,1.45959363,2914.8,2914.7,0.5345036]
[1644727909115,1.45959363,2914.8,2914.7,0.0104001]
[1644727909818,1.45959363,2914.8,2914.6,0.52630585]
[1644727910023,4.65239283,2914.8,2914.6,0.01040017]
[1644727910215,1.45959363,2914.7,2914.6,0.01040017]
[1644727910415,1.45959363,2914.8,2914.6,0.01040017]
[1644727911015,1.45959363,2914.8,2914.4,0.17209129]
[1644727911214,1.45959363,2914.8,2914.6,0.01040024]
[1644727912016,1.0789334,2914.9,2914.6,0.01040024]
[1644727912264,1.45953993,2914.8,2914.4,0.17209129]
[1644727912464,1.45953993,2914.8,2914.6,0.01040024]
[1644727913265,1.45953993,2914.8,2914.4,0.17209129]
[1644727913669,1.45953993,2914.8,2914.6,0.01040024]
[1644727914569,1.45953993,2914.8,2914.4,0.17209129]
[1644727914771,1.45953993,2914.8,2914.6,0.01040024]
[1644727914971,1.0789334,2914.9,2914.6,0.01040024]
[1644727915177,1.45954162,2914.8,2914.6,0.01040024]
[1644727915570,1.45954162,2914.8,2914.7,0.02046788]
[1644727915771,1.06853456,2914.9,2914.7,0.02046788]
[1644727916011,1.45955106,2914.8,2914.7,0.02046788]
[1644727916815,1.45955106,2914.8,2913.2,1.89605435]
[1644727916816,0.03053552,2914.6,2913.8,0.55930029]
[1644727917013,1.45955106,2914.5,2913.8,0.30930029]
[1644727917213,3.52018555,2914.4,2913.8,0.30930029]
[1644727917617,0.99713415,2914.2,2913.8,0.30930029]
[1644727918018,0.1715,2914.5,2913.8,0.30930029]
[1644727918219,1.45975112,2914.4,2913.8,0.30930029]
[1644727918420,3.26427444,2914.3,2913.8,0.137209]
[1644727918620,0.1715,2914.5,2913.8,0.137209]
[1644727918819,1.45978282,2914.4,2913.8,0.137209]
[1644727919668,1.06779004,2914.2,2914.0,0.00394563]
[1644727920474,1.06779004,2914.2,2913.4,0.17209129]
[1644727920874,4.5504,2914.4,2914.0,0.01040105]
[1644727921072,4.3789,2914.4,2914.0,0.01040105]
[1644727921677,4.3789,2914.4,2913.4,0.17209129]
[1644727922079,0.89029238,2914.2,2914.1,0.01040091]
[1644727922877,0.89029238,2914.2,2913.4,0.17209129]
[1644727923281,0.89029238,2914.2,2914.0,0.01040098]
[1644727924212,0.89029238,2914.2,2913.4,0.34359129]
[1644727924413,0.89029238,2914.2,2914.0,0.01040105]
[1644727925214,3.78808653,2914.1,2914.0,0.01040105]
[1644727925522,4.08808653,2914.1,2914.0,0.01040105]
[1644727925722,6.54821842,2914.1,2912.5,0.0028389]
[1644727925916,5.0,2913.5,2912.5,0.0028389]
[1644727926118,0.1716,2913.4,2912.5,0.0028389]
[1644727926316,1.03663828,2913.1,2912.5,0.0028389]
[1644727926718,3.2284,2913.3,2912.5,0.0028389]
[1644727926920,3.2284,2913.3,2912.5,0.1744389]
[1644727927166,3.2284,2913.3,2912.6,0.0028389]
[1644727927967,3.2284,2913.3,2912.8,0.00393938]
[1644727928969,3.2284,2913.3,2912.6,0.0028389]
[1644727929170,3.2284,2913.3,2912.9,0.01040246]
[1644727930072,3.2284,2913.3,2912.8,0.0028389]
[1644727930472,6.57882977,2913.3,2913.0,0.0104024]
[1644727930673,3.2284,2913.3,2913.0,0.0104024]
[1644727931410,3.2284,2913.3,2912.8,0.0028389]
[1644727931710,3.2284,2913.3,2913.0,0.01040233]
[1644727932513,3.2284,2913.3,2912.7,0.02277465]
[1644727932813,3.2284,2913.3,2913.0,0.01040233]
[1644727933816,3.2284,2913.3,2912.7,0.02277465]
[1644727934017,3.2284,2913.3,2913.0,0.01040233]
[1644727934871,3.2284,2913.3,2912.7,0.02561355]
[1644727935270,3.2284,2913.3,2913.0,0.01040233]
[1644727935873,3.2284,2913.3,2913.1,0.02636558]
[1644727936377,3.2284,2913.3,2913.1,0.03676784]
[1644727937377,3.2284,2913.3,2913.1,0.02636558]
[1644727937677,3.2284,2913.3,2913.1,0.03610508]
[1644727938519,3.2284,2913.3,2913.1,0.02636558]
[1644727938916,3.2284,2913.3,2913.1,0.03610508]
[1644727939818,3.2284,2913.3,2913.1,0.02636558]
[1644727940417,3.2554125,2913.3,2912.5,0.0028389]
[1644727941819,0.88721088,2913.0,2912.5,0.0028389]
[1644727943568,0.88721088,2913.0,2912.6,0.01000951]
[1644727943772,3.2554125,2913.3,2912.6,0.01000951]
[1644727944571,3.2554125,2913.3,2912.5,0.0028389]
[1644727944777,3.2554125,2913.3,2913.2,0.88657552]
[1644727944778,0.0270125,2913.3,2913.2,0.88657552]
[1644727944972,0.0270125,2913.3,2913.2,5.01304563]
[1644727945270,0.0270125,2913.3,2913.2,4.92301708]
[1644727948318,0.0270125,2913.3,2913.2,1.55266681]
[1644727948526,0.0270125,2913.3,2913.2,0.66609129]
[1644727948728,0.0270125,2913.3,2913.1,0.00978651]
[1644727949321,0.0270125,2913.3,2913.0,0.0028389]
[1644727950172,0.0270125,2913.3,2912.8,0.0028389]
[1644727950371,1.11538743,2913.4,2912.8,0.0028389]
[1644727950970,0.1716,2913.7,2912.8,0.0028389]
[1644727951975,1.07531615,2913.5,2913.1,0.01002933]
[1644727952775,0.1716,2913.4,2913.1,0.01002933]
[1644727953074,0.1716,2913.4,2912.8,0.0028389]
[1644727953278,1.07531615,2913.5,2913.2,0.0099157]
[1644727954320,1.07531615,2913.5,2912.8,0.0028389]
[1644727954522,1.07531615,2913.5,2913.2,0.00991563]
[1644727954721,4.4403,2913.8,2913.2,0.00991563]
[1644727955221,0.02715685,2913.7,2913.1,0.45391563]
[1644727956221,0.02715685,2913.7,2913.1,0.45675453]
[1644727956420,0.02715685,2913.7,2913.1,0.45391563]
[1644727956825,0.02715685,2913.7,2913.1,0.46370755]
[1644727957867,0.02715685,2913.7,2913.1,0.45391563]
[1644727958066,0.02715685,2913.7,2913.1,0.46370755]
[1644727958671,0.02715685,2913.7,2913.1,0.46654645]
[1644727959071,0.02715685,2913.7,2913.1,0.45675453]
[1644727959272,0.02715685,2913.7,2913.1,0.46654645]
[1644727959475,0.02715685,2913.7,2913.1,0.07904645]
[1644727959971,0.03620914,2913.7,2913.1,0.07904645]
[1644727960171,0.03620914,2913.7,2913.1,0.06925453]
[1644727960375,0.03620914,2913.7,2913.1,0.07905441]
[1644727960775,0.03620914,2913.7,2913.1,0.07621551]
[1644727961417,0.03620914,2913.7,2913.1,0.06641563]
[1644727961721,0.03620914,2913.7,2913.1,0.07621551]
[1644727961917,0.03620914,2913.7,2913.2,1.71586]
[1644727962121,0.03620914,2913.7,2913.3,0.494]
[1644727965161,0.0543137,2913.7,2913.3,0.494]
[1644727967374,6.63170252,2913.6,2912.9,0.1744389]
[1644727967568,5.41302538,2913.5,2912.9,0.1744389]
[1644727967767,1.46010252,2913.4,2913.1,0.00979958]
[1644727967965,1.3835,2913.6,2913.1,0.00979958]
[1644727968166,1.46018665,2913.5,2913.1,0.00979958]
[1644727968619,1.46018665,2913.5,2912.5,0.0028389]
[1644727968620,0.87609302,2913.2,2912.5,0.0028389]
[1644727968919,0.87609302,2913.2,2913.1,0.00979917]
[1644727969821,2.33634036,2913.2,2912.5,0.0028389]
[1644727970026,5.2649845,2913.1,2912.5,0.0028389]
[1644727970223,0.1716,2913.0,2912.5,0.0028389]
[1644727970421,1.63191911,2913.0,2912.5,0.0028389]
[1644727970618,0.1716,2913.0,2912.5,0.0028389]
[1644727970821,0.1716,2913.1,2912.5,0.0028389]
[1644727972465,0.1716,2913.1,2912.7,0.01002397]
[1644727973365,0.1716,2913.1,2912.5,0.0028389]
[1644727973768,0.1716,2913.1,2912.8,0.01002383]
[1644727974670,0.1716,2913.1,2912.5,0.0028389]
[1644727974872,0.1716,2913.1,2912.8,0.01002377]
[1644727975923,0.1716,2913.1,2912.5,0.0028389]
[1644727976116,0.87609302,2913.2,2912.8,0.00977888]
[1644727977021,0.87609302,2913.2,2912.5,0.0028389]
[1644727977220,0.87609302,2913.2,2912.9,0.00977881]
[1644727978220,0.87609302,2913.2,2912.5,0.0028389]
[1644727978416,0.87609302,2913.2,2912.9,0.00977874]
[1644727979522,0.87609302,2913.2,2912.5,0.0028389]
[1644727979771,0.93002177,2913.2,2912.9,0.00979511]
[1644727980570,0.93002177,2913.2,2912.5,0.0028389]
[1644727980970,0.05392875,2913.2,2912.9,0.00979511]
[1644727981172,1.15970715,2913.1,2912.9,0.00979511]
[1644727981572,6.15970715,2913.1,2912.9,0.00979511]
[1644727981874,1.0627325,2912.6,2912.5,0.0028389]
[1644727982072,1.0627325,2912.6,2912.4,0.51435631]
[1644727983273,1.0627325,2912.6,2912.4,0.52415106]
[1644727983519,1.06144359,2912.6,2912.4,0.52415106]
[1644727984220,1.06144359,2912.6,2912.4,0.51435631]
[1644727984618,0.1716,2913.0,2912.4,0.52415106]
[1644727984819,0.1716,2913.0,2912.5,0.0028389]
[1644727985722,2.2248,2913.1,2912.6,0.00979441]
[1644727985918,0.87873869,2912.9,2912.6,0.00979441]
[1644727986720,0.87873869,2912.9,2912.5,0.0028389]
[1644727987019,0.87873869,2912.9,2912.6,0.00979452]
[1644727987879,0.87873869,2912.9,2912.5,0.0028389]
[1644727988083,0.87873869,2912.9,2912.6,0.00979452]
[1644727989180,0.87873869,2912.9,2912.5,0.0028389]
[1644727989382,0.87873869,2912.9,2912.6,0.00979452]
[1644727989781,1.2248,2913.1,2912.6,0.00979452]
[1644727990179,1.2248,2913.1,2912.5,0.0028389]
[1644727990585,1.2248,2913.1,2912.7,0.00979436]
[1644727991419,1.2248,2913.1,2912.6,0.0028389]
[1644727991718,1.2248,2913.1,2912.8,0.00979429]
[1644727992719,1.2248,2913.1,2912.6,0.0028389]
[1644727992919,1.2248,2913.1,2912.8,0.00979423]
[1644727993928,1.2248,2913.1,2912.6,0.0028389]
[1644727994127,1.2248,2913.1,2912.8,0.00979422]
[1644727995169,1.2248,2913.1,2912.6,0.0028389]
[1644727995369,1.2248,2913.1,2912.8,0.00979422]
[1644727996371,1.2248,2913.1,2912.6,0.0028389]
[1644727996570,1.2248,2913.1,2912.8,0.00979422]
[1644727997571,1.2248,2913.1,2912.6,0.0028389]
[1644727997773,1.2248,2913.1,2912.8,0.0097942]
[1644727998623,1.2248,2913.1,2912.6,0.0028389]
[1644727999026,1.2248,2913.1,2912.8,0.0097942]
[1644727999224,4.73520351,2913.4,2912.8,0.0097942]
[1644727999225,3.7548,2913.4,2912.8,0.0097942]
[1644727999427,0.18139092,2913.8,2912.8,0.0097942]
[1644727999428,4.40239092,2913.8,2912.8,0.0097942]
[1644727999629,4.40239092,2913.8,2912.9,0.494]
[1644727999827,4.40239092,2913.8,2913.0,3.86073735]
[1644727999828,4.3926,2913.8,2913.0,3.86073735]
[1644728000028,4.9159,2914.2,2913.1,0.494]
[1644728000324,0.00585576,2913.8,2913.2,3.44513201]
[1644728000524,0.00585576,2913.8,2913.3,0.494]
[1644728001128,0.13819996,2914.3,2913.3,0.494]
[1644728001129,0.1716,2914.3,2913.4,3.25896226]
[1644728001426,0.00585626,2913.8,2913.5,0.494]
[1644728001627,0.00585626,2913.8,2913.6,3.24767945]
[1644728001825,0.00585626,2913.8,2913.7,0.494]
[1644728002289,0.83820764,2914.2,2913.7,0.494]
[1644728002690,0.01001649,2913.9,2913.7,0.494]
[1644728003502,0.83820764,2914.2,2913.7,0.494]
[1644728003893,0.01001642,2913.9,2913.7,0.494]
[1644728004093,0.00876396,2913.9,2913.7,0.494]
[1644728004697,3.15755967,2914.4,2913.7,0.494]
[1644728004698,3.1175,2914.4,2913.7,0.494]
[1644728004894,1.45976222,2914.3,2913.7,0.494]
[1644728006027,0.96185312,2914.1,2913.7,0.494]
[1644728006224,0.96769506,2914.1,2913.7,0.494]
[1644728007223,0.96185312,2914.1,2913.7,0.494]
[1644728007423,0.0097723,2914.0,2913.7,0.494]
[1644728008431,0.96185312,2914.1,2913.7,0.494]
[1644728008633,0.00977236,2914.0,2913.7,0.494]
[1644728009432,0.00977236,2914.0,2913.4,0.1715]
[1644728009672,3.1175,2914.4,2913.4,0.1715]
[1644728009874,0.00978777,2914.0,2913.4,0.1715]
[1644728010679,0.03646569,2914.1,2913.4,0.1715]
[1644728010879,0.03646569,2914.1,2913.3,1.01360397]
[1644728010880,0.03646569,2914.1,2913.3,1.18520397]
[1644728011080,0.00978797,2913.8,2913.3,1.18520397]
[1644728011982,0.86921851,2913.9,2913.3,1.18520397]
[1644728012183,0.00923088,2913.8,2913.3,1.18520397]
[1644728012382,0.00923088,2913.8,2913.3,1.01360397]
[1644728013282,0.00922987,2913.8,2913.3,1.01360397]
[1644728014225,0.86921851,2913.9,2913.3,1.01360397]
[1644728014627,0.00922987,2913.8,2913.3,1.01360397]